Cogmind - Beta 16.1 @@@ ROGUE MODE // 2026.03.15 @ 20:50:41 Player: SunShine214 Result: Destroyed by G-47 Trooper with Particle Gun Performance ------------- Evolutions (3) 1500 Regions Visited (7) 1400 Robots Destroyed (123) 615 Value Destroyed (3352) 3352 Prototype IDs (13) 260 Alien Tech Used (0) 0 Bonus (298) 298 TOTAL SCORE: 7425 Bonus ------- High Alert Combat Kills 258 Follower Combat Kills 40 Cogmind --------- Core Integrity 0/700 Matter 700/700 Energy 80/100 System Corruption 8% Temperature Cool (14) Movement Core (400) Ox7 Location -7/Lower Caves Parts ------- > --- POWER (1) -------- (None) > --- PROPULSION (3) --- (None) > --- UTILITY (6) ------ Armored Scrap Engine Large Storage Unit Advanced Matter Compressor Experimental Optical Array Core Analyzer > --- WEAPON (3) ------- (None) > --- INVENTORY (15) --- Large Storage Unit Authchip [Processor] Plasma Cannon Rocket Launcher Dirty Datajack (20) Dirty Datajack (20) Dirty Datajack (20) CPS Tube (2) Shock Maul Gravity Flail Gravity Flail PL-3XN's Ring of Power Peak State ------------ > --- POWER ------------ Ion-Nuclear Engine > --- PROPULSION ------- Hovering Gravmag-Antigrav Exoskeleton > --- UTILITY ---------- Armored Scrap Engine Large Storage Unit Advanced Matter Compressor Experimental Optical Array Core Analyzer > --- WEAPON ----------- Improved Lightning Gun Cooled Plasma Cannon Gravity Flail > --- INVENTORY -------- Light Treads Gravmag System Xenon Bombardment Thruster Xenon Bombardment Thruster Large Storage Unit Authchip [Processor] Plasma Cannon Rocket Launcher Shock Maul Gravity Flail Gravity Flail PL-3XN's Ring of Power [Rating: 77] Favorites ----------- Power Improved Ion Engine Engine Improved Ion Engine Power Core Light Nuclear Core Propulsion Constructs Treads Light Treads Leg Aluminum Leg Hover Unit Constructs Flight Unit Improved VTOL Module Utility Large Storage Unit Device Armored Scrap Engine Storage Large Storage Unit Processor Experimental Optical Array Protection Heavy Armor Plating Weapon Constructs Energy Gun Constructs Energy Cannon Advanced Beam Cannon Ballistic Gun Shotgun Launcher Rocket Launcher Special Weapon Mining Laser Impact Weapon Gravity Flail Special Melee Weapon Datajack Build | -11 -10 -9 -9 -9 -7 -7 -7 ------- Run | Yrd Mat Mat Sto Rec Fac Low Low Slots Evolved 6 | . . 2 . . 4 . . Power . | . . . . . . . . Propulsion 1 | . . . . . 1 . . Utility 4 | . . 2 . . 2 . . Weapon 1 | . . . . . 1 . . Parts Attached 55 | 8 10 12 2 5 18 . . Power 8 | 1 2 1 . . 4 . . Engine 5 | 1 2 1 . . 1 . . Core 3 | . . . . . 3 . . Reactor . | . . . . . . . . Propulsion 6 | 2 . 3 . 1 . . . Treads 2 | 2 . . . . . . . Leg 2 | . . 2 . . . . . Wheel . | . . . . . . . . Hover . | . . . . . . . . Flight 2 | . . 1 . 1 . . . Utility 17 | 2 3 4 . 2 6 . . Device 4 | 1 1 1 . 1 . . . Storage 4 | 1 2 . . . 1 . . Processor 3 | . . 1 . . 2 . . Hackware . | . . . . . . . . Protection 6 | . . 2 . 1 3 . . Artifact . | . . . . . . . . Weapon 24 | 3 5 4 2 2 8 . . Energy Gun 3 | 1 . . 1 . 1 . . Energy Cannon 3 | . . . 1 . 2 . . Ballistic Gun 8 | 2 2 3 . . 1 . . Ballistic Cannon . | . . . . . . . . Launcher 7 | . 2 1 . 1 3 . . Special Weapon 1 | . 1 . . . . . . Impact Weapon 1 | . . . . . 1 . . Slashing Weapon . | . . . . . . . . Piercing Weapon . | . . . . . . . . Special Melee Weapon 1 | . . . . 1 . . . Unidentified Prototypes 9 | . . 1 2 1 5 . . Parts Lost 28 | . . 4 . 3 15 2 4 Power 6 | . . . . . 5 . 1 Propulsion 9 | . . 2 . 2 2 2 1 Utility 6 | . . 1 . 1 4 . . Weapon 7 | . . 1 . . 4 . 2 Highest Loss Streak 7 | . . 3 . 2 7 2 4 To Critical Strikes 2 | . . 2 . . . . . Average Backups 10 | . 7 12 13 12 12 8 11 Power . | . 1 1 1 1 . . . Propulsion 1 | . 1 1 2 1 3 . . Utility 3 | . 2 3 4 4 4 2 2 Weapon 4 | . 1 5 6 5 4 5 5 Tool/Special . | . . . . . . . . Unused Backups 28 | . . 2 4 2 7 4 9 Power 1 | . . . . . 1 . . Propulsion 10 | . . 2 . 1 3 4 . Utility 4 | . . . . . 2 . 2 Weapon 9 | . . . 4 1 1 . 3 Tool/Special 4 | . . . . . . . 4 Average Slot Usage (%) 80 | . 100 92 88 83 69 69 66 Engine 7 | . 14 11 11 11 3 . . Core 2 | . . . . . 2 7 5 Treads 7 | . 28 5 . 2 4 1 . Leg 3 | . . 8 22 7 . . . Hover 1 | . . . . . . 5 6 Flight 2 | . . 3 . 6 2 . . Device 11 | . 14 11 11 17 11 7 7 Storage 12 | . 14 11 11 11 10 15 15 Processor 6 | . . 9 11 4 4 15 15 Protection 2 | . . 9 . 1 4 . . Energy Gun 6 | . 8 . 9 7 6 7 6 Energy Cannon 4 | . . . 9 11 6 . . Ballistic Gun 5 | . 19 14 2 . 4 . . Launcher 1 | . . 7 . 2 . . . Impact Weapon 2 | . . . . . 3 7 7 Peak Build Rating 77 | 9 10 18 18 40 77 73 67 Average Rating 39 | 5 8 15 17 30 62 66 65 On Entrance 28 | . 9 9 16 18 39 68 67 Avg Prop Armor Cover (%) 1 | . . 1 . . . . . Naked Turns . | . . . . . . . . Heaviest Build 58 | 13 30 36 35 39 58 36 36 Greatest Support 42 | 40 40 40 20 41 42 28 8 Greatest Overweight (x) 10 | . . 6 1 7 1 4 10 Average Overweight (x) 1 | . . 1 1 1 . 2 4 Largest Inventory Capacity 15 | 8 15 15 15 15 15 15 15 Average Capacity 14 | 6 10 15 15 15 15 15 15 Most Carried 15 | 1 15 15 15 15 15 12 12 Average Carried 11 | . 7 14 14 14 13 9 12 Final Capacity 15 | 8 15 15 15 15 15 15 15 Final Carried 15 | 1 15 15 15 15 12 12 12 Scrap Engine Consumption 59 | . . . . 13 35 10 1 Constructs Created 5 | . . . . 2 3 . . Constructs Modified 18 | . . . . 3 11 4 . Class Distribution -------------------- 67% | Mutant 18% | Construct 5% | Commander-Tank 4% | Tank Dominant Class ---------------- Mutant | -10/Materials Mutant | -9/Materials Mutant | -9/Storage Mutant | -9/Recycling Construct | -7/Factory Mutant | -7/Lower Caves Mutant | -7/Lower Caves Resources | -11 -10 -9 -9 -9 -7 -7 -7 ----------- Run | Yrd Mat Mat Sto Rec Fac Low Low Matter Collected 2484 | 197 370 501 30 155 977 232 22 Remotely . | . . . . . . . . Salvage Created 4579 | 85 493 402 237 1039 1908 415 . Parts 209 | 10 39 16 8 39 91 6 . Haulers Intercepted 4 | . 1 1 1 . 1 . . Recyclers Shooed 6 | . . 3 1 . 2 . . Parts Field Recycled . | . . . . . . . . Retrieved Matter . | . . . . . . . . Parts Self-Destructed 8 | . . . . . . 7 1 Prevented 1 | . . . . . . 1 . Parts Restored . | . . . . . . . . Kills | -11 -10 -9 -9 -9 -7 -7 -7 ------- Run | Yrd Mat Mat Sto Rec Fac Low Low Combat Hostiles Destroyed 76 | . 16 10 3 7 32 8 . Melee 4 | . . . . . 1 3 . Guns 27 | . 16 3 1 . 7 . . Cannons 11 | . . . 2 4 5 . . AOE 28 | . . 7 . 3 18 . . Classes Destroyed 15 | 3 4 2 . 1 4 1 . Worker 10 | 1 1 1 . . 7 . . Builder 4 | . . . . . 4 . . Tunneler 1 | 1 . . . . . . . Hauler 4 | . 1 1 1 . 1 . . Recycler 21 | 1 . 3 . 8 9 . . Mechanic 1 | . . . . . 1 . . Operator 1 | . . 1 . . . . . Watcher 5 | . 2 . 1 . 2 . . Swarmer 26 | . 9 7 . . 8 2 . Grunt 21 | . 7 2 1 . 9 2 . Duelist 3 | . . . . . . 3 . Sentry 10 | . . 1 2 4 2 1 . Specialist 6 | . . . . . 6 . . Programmer 7 | . . . . . 7 . . Scrapper 3 | . . . . 3 . . . Decomposer 2 | . . . . . . 2 . Best Kill Streak 10 | 2 7 7 3 5 10 8 . Combat Bots Only 8 | . 6 7 1 2 8 8 . Max Kills in Single Turn 4 | 1 1 2 1 1 4 1 . Gunslinging . | . . . . . . . . Exploded 3 | . . 1 . 1 3 . . Melee 1 | . . . . . 1 1 . Uniques/NPCs Destroyed . | . . . . . . . . Combat | -11 -10 -9 -9 -9 -7 -7 -7 -------- Run | Yrd Mat Mat Sto Rec Fac Low Low Hostile Shots Fired 620 | . 63 59 14 30 352 70 32 Missed 204 | . 18 14 5 10 132 20 5 Hits 416 | . 45 45 9 20 220 50 27 Melee 2 | . . . . . . 2 . Projectile 414 | . 45 45 9 20 220 48 27 AOE 1 | . . . . . 1 . . Critical Strikes 13 | . . 2 . . 6 3 2 Damage Taken 6638 | . 460 548 160 430 3719 887 434 Core 1036 | . 108 93 14 121 353 207 140 Absorbed by Shields 15 | . . . 8 . 7 . . Regen/Repaired (Parts) 797 | . . . . . 557 240 . Core Remaining (%) 66 | 100 56 . . 43 . . . Volleys Fired 236 | 6 55 34 13 26 88 13 1 Largest 3 | 2 2 2 2 2 3 1 1 Hottest 158 | 70 150 53 124 124 158 53 53 Shots Fired 443 | 12 110 55 26 53 173 13 1 Gun 313 | 12 105 45 13 19 105 13 1 Cannon 83 | . . . 13 27 43 . . Launcher 46 | . 4 10 . 7 25 . . Special 1 | . 1 . . . . . . Kinetic 175 | 6 68 45 . . 56 . . Thermal 163 | 6 38 . 26 45 48 . . Explosive 46 | . 4 10 . 7 25 . . Electromagnetic 59 | . . . . 1 44 13 1 Robot Hit Streak 18 | 5 14 9 18 8 14 3 2 Robot Miss Streak 9 | 2 5 9 1 5 8 3 . Penetration Max . | . . . . . . . . Secondary Targets 1 | . 1 . . . . . . Max Gunslinging Chain 1 | . 1 . . . . . . Shots Hit Robots 315 | 8 69 31 21 47 118 19 2 Core Hits 225 | 3 29 25 6 21 136 5 . Critical Kills 1 | . . . 1 . . . . Critical Parts Destroyed 7 | . 1 . . . 1 5 . Critical Strikes 12 | . 2 . 1 2 1 6 . Burn 3 | . 1 . . 2 . . . Meltdown 1 | . . . 1 . . . . Destroy 1 | . 1 . . . . . . Smash 7 | . . . . . 1 6 . Melee Attacks 59 | . . . . 19 20 18 2 Impact 40 | . . . . . 20 18 2 Slashing . | . . . . . . . . Piercing . | . . . . . . . . Sneak Attacks 24 | . . . . 19 1 4 . Combat Hostiles . | . . . . . . . . Follow-up Attacks . | . . . . . . . . Damage Inflicted 10198 | 109 1038 872 408 728 5807 1123 113 Guns 3390 | 103 915 495 190 186 1340 138 23 Cannons 1382 | . . . 207 265 910 . . Explosions 3804 | . 123 372 . 256 3053 . . Melee 1546 | . . . . . 471 985 90 Ramming 76 | 6 . 5 11 21 33 . . Kinetic 2186 | 65 678 495 . . 948 . . Thermal 2891 | 38 237 . 397 451 1768 . . Explosive 3051 | . 123 372 . 256 2300 . . Electromagnetic 448 | . . . . . 287 138 23 Impact 1546 | . . . . . 471 985 90 Slashing . | . . . . . . . . Piercing . | . . . . . . . . Highest Corruption 8 | . . 2 2 2 8 8 8 Average Corruption 4 | . . 2 2 2 5 8 8 Corruption Purged . | . . . . . . . . Corruption Blocked . | . . . . . . . . Effects 106 | . . 4 2 15 34 47 4 Message Errors 33 | . . 1 1 4 10 16 1 Matter Fused 17 | . . 1 . 4 5 7 . Heat Flow Errors 15 | . . 1 . 4 3 6 1 Energy Discharges 11 | . . . . 1 4 6 . Parts Rejected 5 | . . 1 . . 4 . . Parts Fused 1 | . . . . . 1 . . Data Loss (minor) 12 | . . . . . 3 8 1 Data Loss (major) 6 | . . . 1 1 1 3 . Misfires 3 | . . . . 1 2 . . Alerts 2 | . . . . . . 1 1 Weapon Failures 1 | . . . . . 1 . . Overload Shots 3 | . . . . . 3 . . Overflow Damage 960 | . . 10 8 . 488 404 50 Projectiles 75 | . . . 8 . 67 . . Explosions 173 | . . 10 . . 163 . . Melee 712 | . . . . . 258 404 50 Knockbacks 6 | . . . . . 4 1 1 Impact 6 | . . . . . 4 1 1 Kinetic . | . . . . . . . . Secondary . | . . . . . . . . Self-Inflicted Damage 393 | . . 69 . 52 272 . . Shots 15 | . . 2 . 2 11 . . Rammed 6 | . . 3 . . 3 . . Targets Rammed 15 | 1 . 4 2 5 3 . . Kicked 8 | . . 1 2 5 . . . Crushed 1 | 1 . . . . . . . Highest Temperature 422 | 18 195 184 255 314 422 254 209 Average Temperature 107 | 10 50 73 99 120 125 125 84 Received Heat Transfer 2058 | . 183 126 48 192 1041 189 279 Effects 5 | . . . . . 5 . . Shutdowns 1 | . . . . . 1 . . Interference 3 | . . . . . 3 . . Damage (minor) 1 | . . . . . 1 . . Siege Activations . | . . . . . . . . Martial Activations . | . . . . . . . . Shielding Activations . | . . . . . . . . Robots Disrupted . | . . . . . . . . Combat Hostiles . | . . . . . . . . Robots Corrupted 7 | . . . . . 2 5 . Combat Hostiles 5 | . . . . . 1 4 . Parts Fried 10 | . . . . . 2 8 . Impact Corruptions 21 | . . . . . 7 13 1 Robots Melted 1 | . . . 1 . . . . Combat Hostiles . | . . . . . . . . Parts Melted 11 | . 1 . 3 2 5 . . Heat Transferred 5253 | 111 777 . 777 1024 2564 . . Parts Sabotaged . | . . . . . . . . Parts Stolen . | . . . . . . . . Parts Stripped . | . . . . . . . . Power Chain Reactions . | . . . . . . . . Alert | -11 -10 -9 -9 -9 -7 -7 -7 ------- Run | Yrd Mat Mat Sto Rec Fac Low Low Maximum Alert Level 3 | . . 1 . . 3 . . Low Security (%) 73 | 100 100 30 100 100 36 . . Level 1 9 | . . 69 . . 7 . . Level 2 14 | . . . . . 48 . . Level 3 2 | . . . . . 7 . . Level 4 . | . . . . . . . . Level 5 . | . . . . . . . . High Security . | . . . . . . . . Max Security . | . . . . . . . . Peak Influence 718 | 5 191 276 79 35 718 . . Initial 79 | . 3 75 79 7 50 . . Average 155 | 1 67 187 51 4 372 . . Influence Increases 2697 | 15 485 423 121 197 1266 190 . Destroy 0b10 Robot/C 1480 | . 320 200 60 80 660 160 . Destroy 0b10 Robot/NC 235 | 15 20 30 10 40 120 . . Destroy Leader 288 | . 66 42 24 . 156 . . Allied During Kill 4 | . . . . 1 3 . . Successful Hack 58 | . 18 8 12 20 . . . Disable Machine 240 | . 15 60 15 30 120 . . Destroy Structure 252 | . 16 68 . 26 142 . . Advance Influence 50 | . . . . . 50 . . Lose Combat Pursuer 90 | . 30 15 . . 15 30 . Influence Decreases 2697 | 10 311 414 289 217 586 806 64 Entered New Map 493 | . 2 104 109 13 . 252 13 Time Decay 1970 | 10 309 270 180 194 423 534 50 Lost Part 221 | . . 40 . 10 150 20 1 Lost Ally 13 | . . . . . 13 . . Squads Dispatched 14 | . 2 1 . . 11 . . Investigation 3 | . 1 1 . . 1 . . Extermination 3 | . . . . . 3 . . Reinforcement 6 | . 1 . . . 5 . . Assault 2 | . . . . . 2 . . Garrison . | . . . . . . . . Intercept . | . . . . . . . . Searches Triggered . | . . . . . . . . Construction Impeded 2 | . . . . . 2 . . Haulers Reinforced 1 | . . . . . 1 . . Active Scanning Responses . | . . . . . . . . Cargo Convoy Interrupts 1 | . . . . . 1 . . Stealth | -11 -10 -9 -9 -9 -7 -7 -7 --------- Run | Yrd Mat Mat Sto Rec Fac Low Low Distress Signals 11 | . 3 1 1 . 6 . . Communications Jammed . | . . . . . . . . Distress Signals . | . . . . . . . . Times Spotted 115 | . 25 13 4 7 56 7 3 Peak Tracking Total 10 | . 4 4 2 4 10 7 3 Tactical Retreats 4 | . 1 1 . . 1 1 . Traps | -11 -10 -9 -9 -9 -7 -7 -7 ------- Run | Yrd Mat Mat Sto Rec Fac Low Low Traps Triggered 4 | . 1 . 3 . . . . Indirectly . | . . . . . . . . Trap Hack Attempts . | . . . . . . . . Triggered . | . . . . . . . . Disarmed . | . . . . . . . . Reprogrammed . | . . . . . . . . Reused . | . . . . . . . . Traps Extracted . | . . . . . . . . Installed . | . . . . . . . . Triggered . | . . . . . . . . Machines | -11 -10 -9 -9 -9 -7 -7 -7 ---------- Run | Yrd Mat Mat Sto Rec Fac Low Low Machines Disabled 16 | . 1 4 1 2 8 . . Max in Single Turn 5 | . 1 3 1 1 5 . . Machines Repaired . | . . . . . . . . Machines Dismantled . | . . . . . . . . Machines Sabotaged . | . . . . . . . . Overloaded Fab Kills . | . . . . . . . . Hacking | -11 -10 -9 -9 -9 -7 -7 -7 --------- Run | Yrd Mat Mat Sto Rec Fac Low Low Machines Accessed 20 | . 3 2 3 9 2 1 . Terminals 14 | . 3 2 3 5 1 . . Fabricators 1 | . . . . . 1 . . Repair Stations . | . . . . . . . . Recycling Units 3 | . . . . 3 . . . Scanalyzers . | . . . . . . . . Garrison Access . | . . . . . . . . Total Hacks 33 | . 4 5 5 15 3 1 . Successful 17 | . 2 1 3 10 . 1 . Failed 16 | . 2 4 2 5 3 . . Catastrophic 5 | . . 2 1 1 1 . . Database Lockouts . | . . . . . . . . Manual 7 | . . 3 1 1 2 . . Terminals 24 | . 4 5 5 8 2 . . Fabricators 1 | . . . . . 1 . . Repair Stations . | . . . . . . . . Recycling Units 5 | . . . . 5 . . . Scanalyzers . | . . . . . . . . Garrison Access . | . . . . . . . . Terminal Hacks 14 | . 2 1 3 7 . 1 . Part Schematic 3 | . . . . 3 . . . Open Door 3 | . . . 2 . . 1 . Branch Access Points 1 | . . 1 . . . . . Emergency Access Points 1 | . 1 . . . . . . Security Status 1 | . . . . 1 . . . Patrol Status 1 | . . . . 1 . . . Hauler Manifests 2 | . 1 . 1 . . . . Release Object 2 | . . . . 2 . . . Fabricator Hacks . | . . . . . . . . Repair Station Hacks . | . . . . . . . . Recycling Unit Hacks 3 | . . . . 3 . . . Retrieve Components 3 | . . . . 3 . . . Scanalyzer . | . . . . . . . . Garrison Access Hacks . | . . . . . . . . Unauthorized Hacks . | . . . . . . . . Terminals . | . . . . . . . . Fabricators . | . . . . . . . . Repair Stations . | . . . . . . . . Recycling Units . | . . . . . . . . Scanalyzers . | . . . . . . . . Garrison Access . | . . . . . . . . Data Cores Recovered 1 | . . 1 . . . . . Used . | . . . . . . . . Hacking Detections 14 | . 3 2 2 5 2 . . Full Trace Events 3 | . . 1 . 1 1 . . Feedback Events . | . . . . . . . . Feedback Blocked . | . . . . . . . . Robot Schematics Acquired . | . . . . . . . . Robots Built . | . . . . . . . . Authchips . | . . . . . . . . Time . | . . . . . . . . Total Robot Build Rating . | . . . . . . . . Part Schematics Acquired 3 | . . . . 3 . . . Parts Built . | . . . . . . . . Authchips . | . . . . . . . . Time . | . . . . . . . . Total Part Build Rating . | . . . . . . . . Part Studies Acquired . | . . . . . . . . Parts Repaired . | . . . . . . . . Time . | . . . . . . . . Parts Recycled . | . . . . . . . . Recycled Matter . | . . . . . . . . Retrieved Matter . | . . . . . . . . Retrieved Components 16 | . . . . 16 . . . Parts Scanalyzed . | . . . . . . . . Part Schematics Acquired . | . . . . . . . . Parts Damaged . | . . . . . . . . Bothacking | -11 -10 -9 -9 -9 -7 -7 -7 ------------ Run | Yrd Mat Mat Sto Rec Fac Low Low Used RIF Installer . | . . . . . . . . Robots Hacked . | . . . . . . . . Non-combat . | . . . . . . . . Combat . | . . . . . . . . Robot Hacks Applied . | . . . . . . . . Relay Couplers Released 3 | . . . . . 3 . . Programmers 3 | . . . . . 3 . . Fabnet Peak Effective % . | . . . . . . . . Robots Rewired 8 | . . . . 8 . . . Allies Hacked 1 | . . . . . 1 . . Hacks Repelled . | . . . . . . . . Allies | -11 -10 -9 -9 -9 -7 -7 -7 -------- Run | Yrd Mat Mat Sto Rec Fac Low Low Total Allies 8 | . . . . 8 . . . Largest Group 8 | . . . . 8 8 . . Highest-Rated Group 101 | . . . . 101 101 . . Highest-Rated Ally 27 | . . . . 27 27 . . Total Orders . | . . . . . . . . Ally Attacks 16 | . . . . . 16 . . Total Damage 163 | . . . . . 163 . . Kills 1 | . . . . . 1 . . Allies Corrupted . | . . . . . . . . Allies Melted . | . . . . . . . . Intel | -11 -10 -9 -9 -9 -7 -7 -7 ------- Run | Yrd Mat Mat Sto Rec Fac Low Low Active Infowar (turns) 6904 | 15 1322 581 369 1363 1624 1510 120 Optics 2362 | . . . . . 732 1510 120 Sensors 4438 | . 1233 581 369 1363 892 . . Terrain 104 | 15 89 . . . . . . Robot Analysis Total . | . . . . . . . . Derelict Logs Recovered 1 | . . . . . . 1 . Drone Launches . | . . . . . . . . Drone Recoveries . | . . . . . . . . Exploration | -11 -10 -9 -9 -9 -7 -7 -7 ------------- Run | Yrd Mat Mat Sto Rec Fac Low Low Turns Passed 7016 | 101 1322 581 369 1363 1650 1510 120 Spaces Moved 3016 | 44 592 197 162 698 850 448 25 Core 3 | 1 . . . . . . 2 Treads 1630 | 43 592 67 . 216 524 188 . Legs 491 | . . 99 162 230 . . . Wheels . | . . . . . . . . Hover 311 | . . . . . 28 260 23 Flight 581 | . . 31 . 252 298 . . Fastest Speed 50 | 50 160 160 190 80 51 155 380 Average Speed 188 | 157 160 228 190 164 142 320 455 Slowest Speed 550 | 160 160 455 190 525 187 455 550 Overloaded Moves . | . . . . . . . . Propulsion Burnouts . | . . . . . . . . Robots Hopped . | . . . . . . . . Potential Cave-ins . | . . . . . . . . Cave-ins Triggered . | . . . . . . . . Exploration Rate (%) 40 | 4 81 28 33 80 23 64 14 Regions Visited 7 Branch Regions 4 Pre-discovered Areas . | . . . . . . . . Known Exits Taken 3 | . . 1 1 1 . . . Unknown Exits Taken 4 | 1 1 . . . 1 1 . Scrap Searched 4 | . . . . . . 3 1 Spaces Dug 14 | . . 4 . . 10 . . Terrain Destroyed 357 | . 30 65 . 68 194 . . Melee 10 | . . . . . 10 . . Projectile 8 | . . . . 5 3 . . AOE 339 | . 30 65 . 63 181 . . Terrain Rammed . | . . . . . . . . Walls Destroyed . | . . . . . . . . Machines Disabled . | . . . . . . . . Actions | -11 -10 -9 -9 -9 -7 -7 -7 --------- Run | Yrd Mat Mat Sto Rec Fac Low Low Total 3849 | 59 853 267 202 849 1102 489 28 Wait 360 | . 182 . 4 81 90 3 . Move 3010 | 44 591 196 161 697 849 447 25 Hop . | . . . . . . . . Pick Up 44 | 1 11 7 5 5 11 4 . Fast Attach 28 | 7 . 4 . 2 15 . . Attach 5 | . . 2 . 2 1 . . Detach 3 | . . . . 3 . . . Swap 37 | 1 11 8 2 3 12 . . Drop 43 | . 3 12 5 6 13 4 . Fire 236 | 6 55 34 13 26 88 13 1 Melee 59 | . . . . 19 20 18 2 Ram 4 | . . 3 . . 1 . . Kick 8 | . . 1 2 5 . . . Crush 2 | . . . . . 2 . . Escape Stasis 10 | . . . 10 . . . . Rewire . | . . . . . . . . Trap . | . . . . . . . . Miscellaneous . | . . . . . . . . Route ------- -11/Scrapyard -10/Materials (discovered 4 exits: *Mat x2 / [*Min] / [Sub]) -9/Materials (discovered 3 exits: [*Mat] / Min / *Sto) -9/Storage -9/Recycling -7/Factory -7/Lower Caves -7/Lower Caves History --------- Turn | Location | Event 15 | -11/Scrapyard | Discovered new exit (range 15) 102 | -11/Scrapyard | Entered Materials 120 | -10/Materials | Discovered new exit (range 9) 256 | -10/Materials | Discovered new exit (range 12) 307 | -10/Materials | Build established: Mutant 815 | -10/Materials | Discovered new exit (range 15) 1331 | -10/Materials | Discovered new exit (range 16) 1424 | -10/Materials | Entered another Materials area 1424 | -9/Materials | Evolved 2 slots: Utility x2 1528 | -9/Materials | Identified exit to Mines 1528 | -9/Materials | Identified exit to Storage 1597 | -9/Materials | Destroyed 7 combat bots 1601 | -9/Materials | Lost 3 parts (2n1w) 1851 | -9/Materials | Discovered new exit (range 5) 2005 | -9/Materials | Entered Storage 2368 | -9/Storage | Used back door to open Recycling access 2368 | -9/Storage | Discovered new exit (range 4) 2372 | -9/Storage | Identified exit to Recycling 2374 | -9/Storage | Entered Recycling 2540 | -9/Recycling | Discovered new exit (range 13) 2563 | -9/Recycling | Identified exit to Factory 2839 | -9/Recycling | Scanned before Scraplab entrance 2852 | -9/Recycling | Angered Scraplab inhabitants 2909 | -9/Recycling | Core integrity fell below 50% 2951 | -9/Recycling | Found Prototype Device 2951 | -9/Recycling | Identified Scrap Engine 3452 | -9/Recycling | Build established: Construct 3737 | -9/Recycling | Entered Factory 3737 | -7/Factory | Accompanied by 8 allies 3737 | -7/Factory | Evolved 4 slots: Propulsion x1, Utility x2, Weapon x1 4034 | -7/Factory | Build established: Commander-Tank 4108 | -7/Factory | Lost 4 allies 4186 | -7/Factory | Lost 3 allies 4191 | -7/Factory | P-70 Sage assimilated allied Savior 2a 4416 | -7/Factory | Build established: Tank 4623 | -7/Factory | Cargo convoy interrupted 4651 | -7/Factory | Found PL-3XN's Ring of Power 4662 | -7/Factory | Destroyed 8 combat bots 4699 | -7/Factory | Lost 7 parts (2p1n2u2w) 5197 | -7/Factory | Build established: Construct 5316 | -7/Factory | Discovered new exit (range 23) 5337 | -7/Factory | First assault squad dispatched 5384 | -7/Factory | Core integrity fell below 50% 5387 | -7/Factory | Entered Lower Caves 5777 | -7/Lower Caves | Attracted the attention of an 0b10 outpost 5872 | -7/Lower Caves | Destroyed 8 combat bots 6091 | -7/Lower Caves | Build established: Mutant 6571 | -7/Lower Caves | Discovered new exit (range 15) 6897 | -7/Lower Caves | Entered another Lower Caves area 6994 | -7/Lower Caves | Core integrity fell below 20% 7017 | -7/Lower Caves | Destroyed by G-47 Trooper with Particle Gun Last Messages --------------- 06999_ Acquired 1 matter. 06999_ Lgt. Nuclear Core destroyed. 07001_ Arm. Scrap Engine consumes Mak. Power Source. 07002_ Hovering Gravmag-Antigrav Exoskeleton destroyed. 07002_ Arm. Scrap Engine damaged due to network destabilization (-7). 07007_ Charged Lightning Construct/G destroyed. 07007_ Arm. Scrap Engine damaged due to network destabilization (-6). 07011_ Critical hit (Burn: +37). 07014_ System corrupted: IFF burst signal emitted. 07016_ Destroyed Imp. Heat Sink. 07016_ G-47 Trooper system corrupted by crushing effect. 07016_ G-47 Trooper knocked back. 07016_ Critical hit (Burn: +37). 07016_ Gravity Flail destroyed. Map ----- +----------------------------------------------------+ | ?????????????????????????????????????????????????? | | ?????????????????????????????????????????????????? | | ?????????????????????????????????????????????????? | | ?????????????????????????????????????????????????? | | ???????????????????????????????????????# #?????? | | ??????????????????????????????????????? ###???? | | ?????????????????????????????????????? #???? | | ???????????????????????????????????? #???? | | ???????????????????????????????????? ##??? | | ????????????????????????????????????? ##?? | | ????????????????????????????????????? #?? | | ?????????????????????????????????????? #??? | | ?????????????????????????????????????? #??? | | ??????????????????????????????????????# #??? | | ??????????????????????????????????????# #??? | | ????????????????????????????????????### ##?? | | ???????????????????????????????????## #?? | | ??????????????????????????????????## #?? | | ????????????????????????????????### #??# | | ???????????????????????????????## #?## | | ??????????????????????????????## #?# | | ?????????????????????????###### #?# #??# | | ?????????????????????????# !%[ ### #?## | | ???????????# ?????????# ### | | ???????????# #### ## | | ???????????????# @ #### | | ???????????????##### ##??# ## | | ???????????????????# g g g#??## #### | | ???????????????????# #??####??# | | ??????????????????# #???????### | | ??????????????????# #????????# | | ??????????????????### ######????????# ## | | ????????????????????# ##????????????? ###### | | ???????????????????? ?????????????? #????## | | ??????????????????? #????????????? ?????? | | ?????????????????? ##????????????? ?????? | | ?????????????????? #?????????????? ????? | | ?????????????????# #?????????????? ????? | | ?????????????????###?????????????? #???? | | ?????????????????????????????????###### ######???? | | ??????????????????????????????????????##?????????? | | ?????????????????????????????????????????????????? | | ?????????????????????????????????????????????????? | | ?????????????????????????????????????????????????? | | ?????????????????????????????????????????????????? | | ?????????????????????????????????????????????????? | | ?????????????????????????????????????????????????? | | ?????????????????????????????????????????????????? | | ?????????????????????????????????????????????????? | | ?????????????????????????????????????????????????? | +----------------------------------------------------+ Best States ------------- Heat Dissipation 34 Energy Generation 15 Energy Capacity 265 Matter Stores 700 Matter Capacity 700 Sight Range 23 Robot Scan Range 15 Terrain Scan Range 16 Terrain Scan Density 10 Armor Coverage 600 Evasion (%) 59 Core Analysis 6 Recoil Reduction 3 Authchip Count 1 Item Schematics ----------------- Lgt. Armor Plating | -9/Recycling | Hacked Hrd. Light Armor Plating | -9/Recycling | Hacked VTOL Module | -9/Recycling | Hacked Robot Schematics ------------------ None Fabricated ------------ Nothing Repaired ---------- Nothing Studied --------- None Alien Tech Used ----------------- None Achievements -------------- None Challenges ------------ None Game ------ Seed ThermalAluminumParser Manual? 0 Play Time 00:43:04 Cumulative 111.4 hours Start 2026.03.13 @ 19:37:47 End 2026.03.15 @ 20:50:41 Sessions 2 Manual Loads 0 Difficulty Rogue Special Mode None Game No. 164 Rogue 164 Adventurer 0 Explorer 0 Win Type - Total 1 Types 1/0/0/0/0/0/0/0/0/0 Lore% 50 Gallery% 51 Achievement% 37 Wizard Run 0 Options --------- Layout 1 ASCII 0 Keyboard 1 Movement Arrows Keybinds 0 Fullscreen 1 Font 24/Smallcaps Map View 50x35 Zoom Use 0% Tactical HUD 1 Map Filters NONE Filters NONE Steam 1 RUN: b21ccb99-eb5e-4506-8a27-5e03e14773f3